bitfinex-derivatives/quotes_BTCF0:USTF0_20250924
["timestamp","ask_amount","ask_price","bid_price","bid_amount"]
[1758678594946,0.83197,112440.0,112430.0,0.49679697]
[1758678595346,0.0005,112440.0,112430.0,0.85759697]
[1758678595550,0.0005,112440.0,112430.0,1.77159463]
[1758678595750,0.38336,112450.0,112440.0,0.1246012]
[1758678595951,1.1928,112450.0,112440.0,0.6884766]
[1758678596150,1.192,112450.0,112440.0,0.78262847]
[1758678596349,1.1924,112450.0,112440.0,0.87156874]
[1758678596549,1.1924,112450.0,112440.0,1.03085184]
[1758678597040,1.16984,112450.0,112440.0,1.03085184]
[1758678597550,0.80904,112450.0,112440.0,1.39165184]
[1758678598945,0.80904,112450.0,112440.0,0.82777644]
[1758678599149,0.8316,112450.0,112440.0,1.39165184]
[1758678599749,0.8316,112450.0,112440.0,0.82777644]
[1758678599954,0.8316,112450.0,112440.0,1.39165184]
[1758678600142,0.0004,112450.0,112440.0,1.39165184]
[1758678600449,0.80916,112450.0,112440.0,1.39165184]
[1758678601549,0.80916,112450.0,112440.0,1.23236874]
[1758678606960,0.80916,112450.0,112440.0,1.39165184]
[1758678610167,0.0004,112450.0,112440.0,1.39165184]
[1758678610456,0.72556,112450.0,112440.0,1.39165184]
[1758678610861,0.0004,112450.0,112440.0,1.39165184]
[1758678611158,0.8088,112450.0,112440.0,1.39165184]
[1758678614162,0.83127,112450.0,112440.0,0.82777644]
[1758678614362,0.83127,112450.0,112440.0,1.39165184]
[1758678617567,0.83127,112450.0,112440.0,1.23236874]
[1758678618068,0.02287,112450.0,112440.0,1.23236874]
[1758678618370,0.83167,112450.0,112440.0,1.23236874]
[1758678622160,1.19247,112450.0,112440.0,0.87156874]
[1758678623365,0.83167,112450.0,112440.0,0.87156874]
[1758678624571,0.83167,112450.0,112440.0,0.55820948]
[1758678624967,1.19247,112450.0,112440.0,0.55820948]
[1758678625770,1.19255,112450.0,112440.0,0.55820948]
[1758678628775,0.83175,112450.0,112440.0,0.55820948]
[1758678630378,0.02287,112450.0,112440.0,0.71774867]
[1758678630578,0.83255,112450.0,112440.0,1.07854867]
[1758678630776,0.83255,112450.0,112440.0,0.71774867]
[1758678633374,0.83235,112450.0,112440.0,0.71774867]
[1758678633778,0.83231,112450.0,112440.0,0.91900948]
[1758678634976,0.83231,112450.0,112440.0,0.55820948]
[1758678635479,0.02287,112450.0,112440.0,0.91900948]
[1758678635671,0.83259,112450.0,112440.0,0.91900948]
[1758678635870,0.83259,112450.0,112440.0,0.55820948]
[1758678640884,0.83259,112450.0,112440.0,0.46723253]
[1758678641182,0.83259,112450.0,112440.0,0.71774867]
[1758678641888,1.19339,112450.0,112440.0,0.71774867]
[1758678642285,1.59339,112450.0,112440.0,0.6235968]
[1758678642478,1.59339,112450.0,112440.0,0.21354147]
[1758678642677,1.59339,112450.0,112440.0,0.46405761]
[1758678645587,1.59339,112450.0,112440.0,0.21354147]
[1758678645781,1.6822831,112450.0,112440.0,0.28414039]
[1758678645981,1.6889931,112450.0,112440.0,0.27115039]
[1758678646181,1.6889931,112450.0,112440.0,0.28508039]
[1758678646182,1.59307,112450.0,112440.0,0.28508039]
[1758678646889,0.78367,112450.0,112440.0,0.28508039]
[1758678647089,1.59303,112450.0,112440.0,0.28508039]
[1758678647588,1.6819231,112450.0,112440.0,0.53559653]
[1758678648091,0.8725631,112450.0,112440.0,0.37605734]
[1758678648281,1.6819231,112450.0,112440.0,0.37605734]
[1758678648584,1.6819231,112450.0,112440.0,0.1116112]
[1758678648890,1.6819231,112450.0,112440.0,0.0889012]
[1758678649687,1.93243924,112450.0,112440.0,0.0889012]
[1758678650090,1.12307924,112450.0,112440.0,0.0889012]
[1758678650290,1.93247924,112450.0,112440.0,0.0889012]
[1758678650491,1.6819631,112450.0,112440.0,0.0889012]
[1758678652700,0.8725631,112450.0,112440.0,0.0889012]
[1758678653200,0.8725631,112450.0,112440.0,0.1117612]
[1758678653401,1.6817631,112450.0,112440.0,0.0889012]
[1758678655903,1.6816031,112450.0,112440.0,0.1117612]
[1758678659307,1.6816031,112450.0,112440.0,0.27130039]
[1758678659705,1.93211924,112450.0,112440.0,0.24844039]
[1758678660609,1.12307924,112450.0,112440.0,0.27130039]
[1758678660807,1.93195924,112450.0,112440.0,0.27130039]
[1758678662709,1.12307924,112450.0,112440.0,0.27130039]
[1758678662908,1.93175924,112450.0,112440.0,0.27130039]
[1758678663509,1.93163924,112450.0,112440.0,0.27130039]
[1758678663706,1.93159924,112450.0,112440.0,0.27130039]
[1758678664008,1.12307924,112450.0,112440.0,0.27130039]
[1758678664212,1.93155924,112450.0,112440.0,0.1117612]
[1758678664713,1.12307924,112450.0,112440.0,0.1117612]
[1758678664907,1.93155924,112450.0,112440.0,0.1117612]
[1758678665109,1.59211,112450.0,112440.0,0.1249412]
[1758678665416,1.84262614,112450.0,112440.0,0.1249412]
[1758678665801,1.03418614,112450.0,112440.0,0.1249412]
[1758678666111,1.59207,112450.0,112440.0,0.1249412]
[1758678666414,0.78367,112450.0,112440.0,0.1249412]
[1758678666613,1.59207,112450.0,112440.0,0.28448039]
[1758678669115,0.78367,112450.0,112440.0,0.28448039]
[1758678669314,1.59203,112450.0,112440.0,0.28448039]
[1758678669907,1.59195,112450.0,112440.0,0.28448039]
[1758678670411,0.78367,112450.0,112440.0,0.28448039]
[1758678670815,1.59191,112450.0,112440.0,0.28448039]
[1758678671016,0.78367,112450.0,112440.0,0.28448039]
[1758678671217,1.59191,112450.0,112440.0,0.28448039]
[1758678671720,0.78367,112450.0,112440.0,0.28448039]
[1758678672122,1.59183,112450.0,112440.0,0.28448039]
[1758678673818,1.59183,112450.0,112440.0,0.1249412]
[1758678675915,1.6807231,112450.0,112440.0,0.1249412]
[1758678676320,1.59183,112450.0,112440.0,0.1249412]
[1758678676519,1.59187,112450.0,112440.0,0.1249412]
[1758678683529,0.78367,112450.0,112440.0,0.1249412]
[1758678683833,1.59167,112450.0,112440.0,0.1249412]
[1758678684527,1.87354657,112450.0,112440.0,0.1249412]
[1758678684728,1.87354657,112450.0,112440.0,0.40681777]
[1758678685527,1.87354657,112450.0,112440.0,0.56645214]
[1758678685727,1.59167,112450.0,112440.0,0.28457557]
[1758678685932,1.87354657,112450.0,112440.0,0.56645214]
[1758678686231,0.83067,112450.0,112440.0,0.56645214]
[1758678686615,0.83027,112450.0,112440.0,0.56645214]
[1758678686819,0.83067,112450.0,112440.0,0.56645214]
[1758678687020,1.47334657,112450.0,112440.0,0.40681777]
[1758678690927,1.47378657,112450.0,112440.0,0.40681777]
[1758678691829,1.47378657,112450.0,112440.0,0.1249412]
[1758678692029,1.47378657,112450.0,112440.0,0.40681777]
[1758678694532,1.19191,112450.0,112440.0,0.40681777]
[1758678694724,1.47378657,112450.0,112440.0,0.40681777]
[1758678697028,1.47378657,112450.0,112440.0,0.56648558]
[1758678697734,1.47378657,112450.0,112440.0,0.40681777]
[1758678698937,0.66554657,112450.0,112440.0,0.56648458]
[1758678699133,1.47378657,112450.0,112440.0,0.56648458]
[1758678699636,0.66554657,112450.0,112440.0,0.56648458]
[1758678699841,1.47382657,112450.0,112440.0,0.56648458]
[1758678704241,1.19195,112450.0,112440.0,0.56648458]
[1758678704441,1.47382657,112450.0,112440.0,0.56648458]
[1758678706239,1.56271967,112450.0,112440.0,0.40681777]
[1758678706434,1.47382657,112450.0,112440.0,0.40681777]
[1758678709538,1.47382657,112450.0,112440.0,0.56648458]
[1758678710235,1.47382657,112450.0,112440.0,0.40681777]
[1758678711347,1.47698657,112450.0,112440.0,0.40681777]
[1758678712046,1.47698657,112450.0,112440.0,0.56648458]
[1758678712446,1.19511,112450.0,112440.0,0.56648458]
[1758678712647,1.47698657,112450.0,112440.0,0.56648458]
[1758678716250,0.38367,112450.0,112440.0,0.56648458]
[1758678716446,1.47646657,112450.0,112440.0,0.56648458]
[1758678717249,0.66554657,112450.0,112440.0,0.56648458]
[1758678717455,1.47642657,112450.0,112440.0,0.40681777]
[1758678719863,0.38367,112450.0,112440.0,0.40681777]
[1758678720058,1.47610657,112450.0,112440.0,0.40681777]
[1758678720355,0.38367,112450.0,112440.0,0.40681777]
[1758678720657,1.19419,112450.0,112440.0,0.40681777]
[1758678720860,1.47606657,112450.0,112440.0,0.40681777]
[1758678721050,0.38367,112450.0,112440.0,0.40681777]
[1758678721250,1.19419,112450.0,112440.0,0.40681777]
[1758678723759,1.19419,112450.0,112440.0,0.1249412]
[1758678724065,1.47606657,112450.0,112440.0,0.40681777]
[1758678724858,1.19419,112450.0,112440.0,0.40681777]
[1758678725853,1.19391,112450.0,112440.0,0.40681777]
[1758678726159,0.38367,112450.0,112440.0,0.40681777]
[1758678726356,0.0004,112450.0,112440.0,1.24836115]
[1758678726664,0.38204,112460.0,112450.0,0.1249531]
[1758678726965,0.83262,112460.0,112450.0,0.40682967]
[1758678732068,0.83262,112460.0,112450.0,0.56649648]
[1758678736472,0.83262,112460.0,112450.0,0.28461991]
[1758678736768,0.0008,112460.0,112450.0,0.56649648]
[1758678736974,0.8114,112460.0,112450.0,0.56649648]
[1758678737165,0.83348,112460.0,112450.0,0.56649648]
[1758678737966,0.83348,112460.0,112450.0,0.57548229]
[1758678738371,0.83348,112460.0,112450.0,0.41581548]
[1758678738674,0.83348,112460.0,112450.0,0.40682967]
[1758678740673,0.02288,112460.0,112450.0,0.41555534]
[1758678740873,0.8344,112460.0,112450.0,0.57522215]
[1758678741567,0.8344,112460.0,112450.0,0.56649648]
[1758678743480,0.8336,112460.0,112450.0,0.56649648]
[1758678743777,0.834,112460.0,112450.0,0.57548497]
[1758678744575,0.834,112460.0,112450.0,0.54406548]
[1758678746479,0.02248,112460.0,112450.0,0.54406548]
[1758678746680,0.8336,112460.0,112450.0,0.54406548]
[1758678747178,0.83344,112460.0,112450.0,0.54406548]
[1758678747671,0.02248,112460.0,112450.0,0.99378993]
[1758678747876,0.0004,112460.0,112450.0,0.99378993]
[1758678748180,0.81092,112460.0,112450.0,1.23412312]
[1758678748380,0.81132,112460.0,112450.0,1.23412312]
[1758678749473,0.0004,112460.0,112450.0,1.23412312]
[1758678749673,0.81112,112460.0,112450.0,1.23412312]
[1758678751378,0.0009,112470.0,112460.0,0.1252552]
[1758678751583,0.81064,112470.0,112460.0,0.73651228]
[1758678751785,0.81104,112470.0,112460.0,0.73651228]
[1758678751983,0.81104,112470.0,112460.0,0.82542883]
[1758678752180,0.0004,112470.0,112460.0,1.38475742]
[1758678752386,0.0004,112470.0,112460.0,1.48033421]
[1758678752683,0.41575,112480.0,112470.0,0.1252473]
[1758678752886,0.41645,112480.0,112470.0,0.73650438]
[1758678753486,0.41645,112480.0,112470.0,0.82542093]
[1758678754082,0.02333,112480.0,112470.0,0.82542093]
[1758678754284,0.83389,112480.0,112470.0,0.82542093]
[1758678755885,0.83389,112480.0,112470.0,0.8960035]
[1758678763581,0.83389,112480.0,112470.0,1.05533209]
[1758678765092,0.83389,112480.0,112470.0,0.8960035]
[1758678765993,0.83389,112480.0,112470.0,0.5352035]
[1758678766195,1.19469,112480.0,112470.0,0.5352035]
[1758678775105,1.2917694,112480.0,112470.0,0.15945987]
[1758678775401,1.2917694,112480.0,112470.0,0.18082987]
[1758678775805,1.2835594,112480.0,112470.0,0.19371987]
[1758678776202,1.2835594,112480.0,112470.0,0.44417695]
[1758678777108,1.2835594,112480.0,112470.0,0.19371987]
[1758678777298,1.2835594,112480.0,112470.0,0.44417695]
[1758678778810,1.2835594,112480.0,112470.0,0.18082987]
[1758678779102,1.2835594,112480.0,112470.0,0.15945987]
[1758678779304,1.2835594,112480.0,112470.0,0.18082987]
[1758678779500,1.2835594,112480.0,112470.0,0.43128695]
[1758678780908,1.2835594,112480.0,112470.0,0.18082987]
[1758678781207,1.2835594,112480.0,112470.0,0.34015846]
[1758678781408,0.4729994,112480.0,112470.0,0.35304846]
[1758678781610,0.83293,112480.0,112470.0,0.60350554]
[1758678784213,1.2825994,112480.0,112470.0,0.59061554]
[1758678784405,1.2825994,112480.0,112470.0,0.31878846]
[1758678784911,1.6825994,112480.0,112470.0,0.24820589]
[1758678785112,1.6825994,112480.0,112470.0,0.0888773]
[1758678785414,1.6825994,112480.0,112470.0,0.1102473]
[1758678786315,0.8729994,112480.0,112470.0,0.1102473]
[1758678786514,1.59365,112480.0,112470.0,0.1102473]
[1758678786817,0.78413,112480.0,112470.0,0.1102473]
[1758678787021,1.59353,112480.0,112470.0,0.1102473]
[1758678787318,1.59353,112480.0,112470.0,0.36070438]
[1758678787526,1.59349,112480.0,112470.0,0.52003297]
[1758678787719,1.59349,112480.0,112470.0,0.26957589]
[1758678787919,1.59345,112480.0,112470.0,0.53292297]
[1758678788825,1.6823194,112480.0,112470.0,0.53292297]
[1758678789016,1.6823194,112480.0,112470.0,0.28246589]
[1758678793126,1.6823194,112480.0,112470.0,0.1231373]
[1758678794627,0.78413,112480.0,112470.0,0.1231373]
[1758678794817,1.59701,112480.0,112470.0,0.1231373]
[1758678795022,1.59701,112480.0,112470.0,0.37359438]
[1758678795328,1.6858794,112480.0,112470.0,0.37359438]
[1758678796324,0.8729994,112480.0,112470.0,0.37359438]
[1758678796528,1.59657,112480.0,112470.0,0.37359438]
[1758678797024,0.38413,112480.0,112470.0,0.37359438]
[1758678797223,1.19657,112480.0,112470.0,0.37359438]
[1758678797430,1.19665,112480.0,112470.0,0.37359438]
[1758678797630,1.19585,112480.0,112470.0,0.37359438]
[1758678797825,1.19625,112480.0,112470.0,0.37359438]
[1758678798224,1.19585,112480.0,112470.0,0.37359438]
[1758678798431,1.19625,112480.0,112470.0,0.37359438]
[1758678799023,0.83545,112480.0,112470.0,0.37359438]
[1758678799632,0.83505,112480.0,112470.0,0.37359438]
[1758678799830,0.83545,112480.0,112470.0,0.37359438]
[1758678800634,0.02293,112480.0,112470.0,0.37359438]
[1758678800834,0.83521,112480.0,112470.0,0.37359438]
[1758678801134,0.83481,112480.0,112470.0,0.46250302]
[1758678801633,0.83521,112480.0,112470.0,0.46250302]
[1758678801827,0.83505,112480.0,112470.0,0.46250302]
[1758678802229,0.83465,112480.0,112470.0,0.46250302]
[1758678802428,0.83505,112480.0,112470.0,0.46250302]
[1758678802834,0.83505,112480.0,112470.0,0.62183161]
[1758678804335,1.19585,112480.0,112470.0,0.62183161]
[1758678804738,0.83505,112480.0,112470.0,0.62183161]
[1758678805237,0.83505,112480.0,112470.0,0.46250302]
[1758678806531,0.83505,112480.0,112470.0,0.49373925]
[1758678807035,1.19585,112480.0,112470.0,0.49373925]
[1758678807340,0.83505,112480.0,112470.0,0.49373925]
[1758678807638,1.19585,112480.0,112470.0,0.49373925]
[1758678807833,0.83505,112480.0,112470.0,0.49373925]
[1758678808035,1.19585,112480.0,112470.0,0.49373925]
[1758678808235,0.83505,112480.0,112470.0,0.49373925]
[1758678810137,0.83429,112480.0,112470.0,0.77543256]
[1758678817335,0.83429,112480.0,112470.0,0.93476115]
[1758678818942,0.83429,112480.0,112470.0,0.77543256]
[1758678822150,1.19509,112480.0,112470.0,0.77543256]
[1758678829161,0.83265,112480.0,112470.0,0.77543256]
[1758678829361,0.83265,112480.0,112470.0,0.93476115]
[1758678830660,0.02293,112480.0,112470.0,0.93476115]
[1758678830861,0.83261,112480.0,112470.0,0.93476115]
[1758678831862,0.02293,112480.0,112470.0,0.93476115]
[1758678832062,0.3609,112490.0,112470.0,1.38443845]
[1758678832362,0.80996,112480.0,112470.0,1.01396784]
[1758678832557,0.80996,112480.0,112470.0,1.01386784]
[1758678833465,0.80996,112480.0,112470.0,1.29556115]
[1758678846468,1.19299,112480.0,112470.0,0.93476115]
[1758678850973,0.02263,112480.0,112470.0,0.93476115]
[1758678851173,0.02263,112480.0,112470.0,1.29556115]
[1758678851571,0.83115,112480.0,112470.0,1.29556115]
[1758678852474,0.02263,112480.0,112470.0,1.29556115]
[1758678852677,0.83115,112480.0,112470.0,1.29556115]
[1758678853078,0.02263,112480.0,112470.0,1.29556115]
[1758678853283,0.83107,112480.0,112470.0,1.29556115]
[1758678853871,0.83107,112480.0,112470.0,0.73217453]
[1758678854171,0.83107,112480.0,112470.0,1.29556115]
[1758678855276,0.02263,112480.0,112470.0,1.29556115]
[1758678855574,0.83107,112480.0,112470.0,1.29556115]
[1758678855975,0.83107,112480.0,112470.0,1.13623256]
[1758678857681,0.83107,112480.0,112470.0,1.29580219]
[1758678859478,1.19187,112480.0,112470.0,0.93500219]
[1758678860482,0.83107,112480.0,112470.0,0.93500219]
[1758678862682,0.83107,112480.0,112470.0,0.98295555]
[1758678863885,0.83107,112480.0,112470.0,0.77543256]
[1758678864977,0.83107,112480.0,112470.0,0.93501586]
[1758678866586,0.83107,112480.0,112470.0,0.62200018]
[1758678867489,0.02263,112480.0,112470.0,0.62200018]
[1758678867785,0.83107,112480.0,112470.0,0.62200018]
[1758678871897,0.02263,112480.0,112470.0,0.62200018]
[1758678872095,0.83103,112480.0,112470.0,0.98280018]
[1758678873905,0.83103,112480.0,112470.0,0.98279162]
[1758678874700,0.83103,112480.0,112470.0,0.82321688]
[1758678876003,0.83103,112480.0,112470.0,1.03073987]
[1758678877203,0.83103,112480.0,112470.0,0.82321688]
[1758678880808,0.83103,112480.0,112470.0,1.03073987]
[1758678885612,0.83103,112480.0,112470.0,0.82321688]
[1758678887711,0.02263,112480.0,112470.0,0.82321688]
[1758678887908,0.83099,112480.0,112470.0,0.82321688]
[1758678888208,0.83099,112480.0,112470.0,0.46241688]
[1758678890615,0.83099,112480.0,112470.0,0.21204594]
[1758678890808,0.83099,112480.0,112470.0,0.46241688]
[1758678891313,0.02263,112480.0,112470.0,0.46241688]
[1758678891611,0.83099,112480.0,112470.0,0.46241688]
[1758678893012,1.19179,112480.0,112470.0,0.46241688]
[1758678895118,1.19179,112480.0,112470.0,0.66993987]
[1758678897622,1.19179,112480.0,112470.0,0.46241688]
[1758678898819,0.38343,112480.0,112470.0,0.46241688]
[1758678899024,1.19175,112480.0,112470.0,0.46241688]
[1758678899424,0.38343,112480.0,112470.0,0.46241688]
[1758678899825,1.19175,112480.0,112470.0,0.46241688]
[1758678904126,0.38343,112480.0,112470.0,0.21204594]
[1758678904325,1.19175,112480.0,112470.0,0.46241688]
[1758678905928,1.19175,112480.0,112470.0,0.21204594]
[1758678906129,1.19175,112480.0,112470.0,0.46241688]
[1758678906724,1.19175,112480.0,112470.0,0.36061824]
[1758678906725,1.2039,112480.0,112470.0,0.36061824]
[1758678906928,1.6927694,112480.0,112470.0,0.0888773]
[1758678907131,1.94314034,112480.0,112470.0,0.2484307]
[1758678907423,0.8844494,112480.0,112470.0,0.2484307]
[1758678907623,1.94314034,112480.0,112470.0,0.2484307]
[1758678907821,1.6927694,112480.0,112470.0,0.0888773]
[1758678908422,1.94314034,112480.0,112470.0,0.0888773]
[1758678908622,1.94314034,112480.0,112470.0,0.2484307]
[1758678909024,1.13482034,112480.0,112470.0,0.2484307]
[1758678909224,1.94314034,112480.0,112470.0,0.2484307]
[1758678911930,1.94314034,112480.0,112460.0,0.0889821]
[1758678911931,0.1170973,112470.0,112460.0,0.0889821]
[1758678912231,1.53658824,112470.0,112460.0,0.0888821]
[1758678912728,0.72826824,112470.0,112460.0,0.2484355]
[1758678912933,1.53658824,112470.0,112460.0,0.2484355]
[1758678913534,1.53658824,112470.0,112460.0,0.0888821]
[1758678914630,0.72826824,112470.0,112460.0,0.0888821]
[1758678914932,1.19738,112470.0,112460.0,0.1243021]
[1758678915629,1.2862573,112470.0,112460.0,0.1105221]
[1758678917736,0.4778973,112470.0,112460.0,0.1105221]
[1758678917937,0.38902,112470.0,112460.0,0.1105221]
[1758678918140,1.19738,112470.0,112460.0,0.1105221]
[1758678918434,1.19738,112470.0,112460.0,0.2700755]
[1758678918638,0.38902,112470.0,112460.0,0.2700755]
[1758678918937,1.19738,112470.0,112460.0,0.2700755]
[1758678919241,1.19738,112470.0,112460.0,0.1105221]
[1758678920134,1.2862572,112470.0,112460.0,0.36089304]
[1758678921031,1.2862972,112470.0,112460.0,0.36089304]
[1758678922039,1.2862972,112470.0,112460.0,0.1105221]
[1758678922249,1.2862972,112470.0,112460.0,0.36089304]
[1758678922537,1.2862972,112470.0,112460.0,0.1105221]
[1758678924039,1.2862972,112470.0,112460.0,0.2700755]
[1758678924942,1.2862972,112470.0,112460.0,0.1105221]
[1758678925531,1.2862972,112470.0,112460.0,0.0888821]
[1758678925735,1.2862972,112470.0,112460.0,0.1111021]
[1758678926742,1.2862972,112470.0,112460.0,0.0888821]
[1758678927043,1.2862972,112470.0,112460.0,0.1111021]
[1758678927541,1.2862972,112470.0,112460.0,0.0888821]
[1758678927927,1.53666814,112470.0,112460.0,0.0888821]
[1758678928536,1.56810142,112470.0,112460.0,0.37068632]
[1758678928744,1.56810142,112470.0,112460.0,0.39290632]
[1758678929743,1.56810142,112470.0,112460.0,0.37068632]
[1758678930043,1.56810142,112470.0,112460.0,0.39290632]
[1758678930344,1.56810142,112470.0,112460.0,0.37068632]
[1758678931044,1.56810142,112470.0,112460.0,0.39290632]
[1758678931236,1.56810142,112470.0,112460.0,0.55245972]
[1758678933444,0.67082422,112470.0,112460.0,0.55245972]
[1758678933646,1.47922422,112470.0,112460.0,0.55245972]
[1758678933841,1.56810152,112470.0,112460.0,0.2484355]
[1758678934041,1.56810152,112470.0,112460.0,0.53023972]
[1758678934446,1.2862973,112470.0,112460.0,0.53023972]
[1758678934647,1.56810152,112470.0,112460.0,0.37068942]
[1758678935445,1.56810152,112470.0,112460.0,0.53024282]
[1758678936444,1.56810152,112470.0,112450.0,0.35400451]
[1758678936445,0.0888852,112460.0,112450.0,0.35400451]
[1758678936640,0.75468942,112460.0,112450.0,0.2484401]
[1758678937036,0.75468942,112460.0,112450.0,0.0888867]
[1758678937743,0.75468942,112460.0,112450.0,0.2484401]
[1758678937950,0.4728852,112460.0,112450.0,0.2484401]
[1758678938149,0.75468942,112460.0,112450.0,0.2484401]
[1758678938653,0.76339271,112460.0,112450.0,0.53024432]
[1758678939349,0.76339271,112460.0,112450.0,0.0888931]
[1758678940645,0.76339271,112460.0,112450.0,0.37069732]
[1758678942753,1.56308942,112460.0,112450.0,0.39291732]
[1758678943153,1.57191128,112460.0,112450.0,0.39291732]
[1758678943651,1.29010706,112460.0,112450.0,0.39291732]
[1758678943850,1.57191128,112460.0,112450.0,0.39291732]
[1758678946461,0.4728852,112460.0,112450.0,0.40588732]
[1758678946757,1.2812852,112460.0,112450.0,0.40588732]
[1758678947450,1.2812852,112460.0,112450.0,0.39291732]
[1758678949254,1.56308942,112460.0,112450.0,0.39291732]
[1758678950960,1.57190155,112460.0,112450.0,0.39291732]
[1758678951162,1.57190155,112460.0,112450.0,0.1111131]
[1758678951464,1.57190155,112460.0,112450.0,0.39291732]
[1758678956163,1.29009733,112460.0,112450.0,0.39291732]
[1758678956367,1.57190155,112460.0,112450.0,0.39291732]
[1758678958060,1.57186155,112460.0,112450.0,0.39291732]
[1758678959468,1.57186155,112460.0,112450.0,0.1111131]
[1758678959763,1.57186155,112460.0,112450.0,0.39291732]
[1758678960175,0.4728852,112460.0,112450.0,0.39291732]
[1758678960371,1.56304942,112460.0,112450.0,0.39291732]
[1758678960569,1.5717475,112460.0,112450.0,0.39291732]
[1758678961169,1.5717475,112460.0,112450.0,0.55247072]
[1758678970586,1.28994328,112460.0,112450.0,0.2706665]
[1758678970790,1.5717475,112460.0,112450.0,0.55247072]
[1758678973091,1.5717475,112460.0,112450.0,0.39291732]
[1758678974491,1.28994328,112460.0,112450.0,0.39291732]
[1758678974694,1.5717475,112460.0,112450.0,0.39291732]
[1758678975282,1.28994328,112460.0,112450.0,0.39291732]
[1758678975587,1.5717475,112460.0,112450.0,0.39291732]
[1758678975795,0.1117932,112450.0,112440.0,0.35604642]
[1758678975994,0.4725932,112450.0,112440.0,0.63775064]
[1758678978085,0.4725932,112450.0,112440.0,0.64575064]
[1758678981383,0.4725932,112450.0,112440.0,0.48600821]
[1758678982285,0.4725932,112450.0,112440.0,0.6935312]
[1758678985887,1.19194,112450.0,112440.0,0.6935312]
[1758678986196,0.3837,112450.0,112440.0,0.6935312]
[1758678986390,1.19194,112450.0,112440.0,0.6935312]
[1758678987396,1.2808332,112450.0,112440.0,0.6935312]
[1758678990600,1.19194,112450.0,112440.0,0.66225634]
[1758678990799,1.1919,112450.0,112440.0,0.66225634]
[1758678993098,0.3837,112450.0,112440.0,0.66225634]
[1758678993397,1.1919,112450.0,112440.0,0.66225634]
[1758678997500,1.2807932,112450.0,112440.0,0.66225634]
[1758678999193,1.1919,112450.0,112440.0,0.66225634]
[1758679000292,0.3837,112450.0,112440.0,1.10526271]
[1758679000493,1.19186,112450.0,112440.0,0.88894163]
[1758679000693,1.19226,112450.0,112440.0,0.88894163]
[1758679001202,1.16936,112450.0,112440.0,0.88894163]
[1758679003402,0.80856,112450.0,112440.0,0.88894163]
[1758679004904,0.80856,112450.0,112440.0,0.63841227]
[1758679005105,0.80856,112450.0,112440.0,0.84593526]
[1758679005295,0.80856,112450.0,112440.0,1.09646462]
[1758679006400,0.80856,112450.0,112440.0,0.88894163]
[1758679006598,0.83096,112450.0,112440.0,0.88894163]
[1758679011302,0.38598,112480.0,112470.0,0.0888774]
[1758679011604,1.19406,112480.0,112470.0,0.37533676]
[1758679011805,0.83126,112480.0,112470.0,0.37533676]
[1758679012007,0.83166,112480.0,112470.0,0.37533676]
[1758679012194,0.02358,112480.0,112470.0,0.4642454]
[1758679012400,0.83166,112480.0,112470.0,0.4642454]
[1758679012599,0.83126,112480.0,112470.0,0.4642454]
[1758679012802,0.83166,112480.0,112470.0,0.4642454]
[1758679014105,0.02358,112480.0,112470.0,0.4642454]
[1758679014303,0.83162,112480.0,112470.0,0.567361]
[1758679014605,0.83122,112480.0,112470.0,0.567361]
[1758679014905,0.83162,112480.0,112470.0,0.567361]
[1758679016604,0.83158,112480.0,112470.0,0.567361]
[1758679016805,0.0004,112480.0,112470.0,0.928161]
[1758679017107,0.808,112480.0,112470.0,0.928161]
[1758679017801,0.8084,112480.0,112470.0,0.928161]
[1758679018107,0.808,112480.0,112470.0,0.928161]
[1758679018309,0.8084,112480.0,112470.0,0.928161]
[1758679019197,0.8084,112480.0,112470.0,1.08782005]
[1758679020000,0.83158,112480.0,112470.0,0.928161]
[1758679020604,0.8084,112480.0,112470.0,0.928161]
[1758679020810,0.83158,112480.0,112470.0,0.928161]
[1758679021411,0.8084,112480.0,112470.0,0.928161]
[1758679021705,0.8084,112480.0,112470.0,1.08782005]
[1758679022511,0.8084,112480.0,112470.0,0.928161]
[1758679023207,0.8084,112480.0,112470.0,1.08782005]
[1758679025007,0.0004,112480.0,112470.0,1.48782005]
[1758679025214,0.83102,112490.0,112480.0,0.1247995]
[1758679025510,0.83182,112490.0,112480.0,0.73612886]
[1758679025913,0.83182,112490.0,112480.0,0.8250296]
[1758679026514,0.83182,112490.0,112480.0,0.89661545]
[1758679028209,0.02398,112490.0,112480.0,0.89661545]
[1758679028414,0.83178,112490.0,112480.0,0.89661545]
[1758679030811,0.83178,112490.0,112480.0,0.28528609]
[1758679031116,0.83178,112490.0,112480.0,0.53581545]
[1758679032617,0.83178,112490.0,112480.0,0.28528609]
[1758679032820,0.83178,112490.0,112480.0,0.53581545]
[1758679037013,1.19258,112490.0,112480.0,0.53581545]
[1758679041027,1.19258,112490.0,112480.0,0.6954745]
[1758679042222,1.19258,112490.0,112480.0,0.44494514]
[1758679042423,1.19258,112490.0,112480.0,0.6954745]
[1758679044734,1.19258,112490.0,112480.0,0.44494514]
[1758679045036,1.19258,112490.0,112480.0,0.6954745]
[1758679045745,1.19258,112490.0,112480.0,0.3560444]
[1758679045746,0.39693,112490.0,112480.0,0.3560444]
[1758679046046,1.19238,112490.0,112480.0,0.3560444]
[1758679048345,1.19238,112490.0,112480.0,0.60657376]
[1758679050048,1.19238,112490.0,112480.0,0.3560444]
[1758679050548,1.47405016,112490.0,112480.0,0.63771456]
[1758679051050,1.19238,112490.0,112480.0,0.63771456]
[1758679051451,1.19238,112490.0,112480.0,0.47805551]
[1758679052154,0.38478,112490.0,112480.0,0.47805551]
[1758679052352,1.19238,112490.0,112480.0,0.47805551]
[1758679052650,1.19234,112490.0,112480.0,0.47805551]
[1758679058253,0.83154,112490.0,112480.0,0.47805551]
[1758679058753,0.83154,112490.0,112480.0,0.63771456]
[1758679061654,0.02398,112490.0,112480.0,0.63771456]
[1758679061856,0.83154,112490.0,112480.0,0.63771456]
[1758679064651,0.02398,112490.0,112480.0,0.63771456]
[1758679064953,0.83154,112490.0,112480.0,0.63771456]
[1758679065259,0.8315,112490.0,112480.0,0.63771456]
[1758679070853,0.8315,112490.0,112480.0,0.3560444]
[1758679071050,1.11317016,112490.0,112480.0,0.3560444]
[1758679071251,1.47397016,112490.0,112480.0,0.63771456]
[1758679074257,1.96283176,112490.0,112480.0,0.62384456]
[1758679075258,1.96283176,112490.0,112480.0,0.63671456]
[1758679077963,1.96283176,112490.0,112480.0,0.47705551]
[1758679078263,1.15531176,112490.0,112480.0,0.47705551]
[1758679078457,1.96283176,112490.0,112480.0,0.47705551]
[1758679078963,1.15531176,112490.0,112480.0,0.47705551]